[Event "FIDE World Rapid Chess Championship 2021"]
[White "Fridman, Daniel"]
[Black "Aronian, Levon"]
[WhiteFideId "11600454"]
[BlackFideId "13300474"]
[WhiteElo "2542"]
[BlackElo "2728"]
[Result "0-1"]
[Round "03"]
[TimeControl "900+10"]
[Date "2021.12.26"]
[WhiteClock "0:01:08"]
[BlackClock "0:04:27"]

1. d4 {[%clk 0:15:00]}  d5 {[%clk 0:15:00]} 2. c4 {[%clk 0:15:33]}  dxc4 {[%clk 0:15:28]} 3. e3 {[%clk 0:15:33]}  e5 {[%clk 0:15:28]} 4. Bxc4 {[%clk 0:15:33]}  Nc6 {[%clk 0:15:28]} 5. Nf3 {[%clk 0:15:22]}  e4 {[%clk 0:15:45]} 6. Nfd2 {[%clk 0:15:22]}  f5 {[%clk 0:15:45]} 7. O-O {[%clk 0:15:22]}  Bd6 {[%clk 0:15:06]} 8. Bxg8 {[%clk 0:14:31]}  Rxg8 {[%clk 0:14:56]} 9. Qh5+ {[%clk 0:14:31]}  g6 {[%clk 0:14:56]} 10. Qxh7 {[%clk 0:14:31]}  Be6 {[%clk 0:14:56]} 11. Nc3 {[%clk 0:11:45]}  Qf6 {[%clk 0:14:55]} 12. d5 {[%clk 0:09:21]}  O-O-O {[%clk 0:15:02]} 13. f4 {[%clk 0:07:07]}  Rh8 {[%clk 0:13:14]} 14. Ndxe4 {[%clk 0:07:07]}  fxe4 {[%clk 0:13:14]} 15. Nxe4 {[%clk 0:07:07]}  Qf8 {[%clk 0:12:50]} 16. Qxg6 {[%clk 0:03:23]}  Bxd5 {[%clk 0:11:32]} 17. Qg4+ {[%clk 0:03:22]}  Kb8 {[%clk 0:11:09]} 18. Ng5 {[%clk 0:03:22]}  Bc5 {[%clk 0:10:55]} 19. Kh1 {[%clk 0:01:33]}  Ne5 {[%clk 0:10:55]} 20. Qg3 {[%clk 0:01:33]}  Nf7 {[%clk 0:10:13]} 21. Bd2 {[%clk 0:01:37]}  Nxg5 {[%clk 0:08:47]} 22. fxg5 {[%clk 0:01:42]}  Qe8 {[%clk 0:08:47]} 23. e4 {[%clk 0:01:42]}  Bxe4 {[%clk 0:08:55]} 24. Bf4 {[%clk 0:01:35]}  Qd7 {[%clk 0:08:55]} 25. Rae1 {[%clk 0:01:35]}  Bc6 {[%clk 0:07:42]} 26. g6 {[%clk 0:01:11]}  Rdg8 {[%clk 0:06:57]} 27. Be5 {[%clk 0:01:09]}  Bd6 {[%clk 0:06:57]} 28. Bxd6 {[%clk 0:00:33]}  Qxd6 {[%clk 0:04:40]} 29. Qxd6 {[%clk 0:00:33]}  cxd6 {[%clk 0:04:40]} 30. Rf6 {[%clk 0:00:33]}  Rh5 {[%clk 0:04:40]} 31. Rxd6 {[%clk 0:00:33]}  Rg5 {[%clk 0:04:40]} 32. Re2 {[%clk 0:00:33]}  Kc7 {[%clk 0:04:45]} 33. Rf6 {[%clk 0:00:25]}  R5xg6 {[%clk 0:04:45]} 34. Rxg6 {[%clk 0:00:25]}  Rxg6 {[%clk 0:04:45]} 35. h3 {[%clk 0:00:25]}  Kd6 {[%clk 0:04:27]} 36. Kh2 {[%clk 0:01:08]}  Re6 {[%clk 0:04:27]} 37. Rd2+ {[%clk 0:01:08]}  Ke5 {[%clk 0:04:27]} 38. g4 {[%clk 0:01:08]}  Kf4 {[%clk 0:04:27]} 39. Rd4+ {[%clk 0:01:08]}  Re4 {[%clk 0:04:27]} 40. Rd2 {[%clk 0:01:08]}  Re1 {[%clk 0:04:27]} 0-1


[Site "http://www.Chess.com"]

[Event "FIDE World Rapid Chess Championship 2021"]
[White "Mamedyarov, Shakhriyar"]
[Black "Ter-Sahakyan, Samvel"]
[WhiteFideId "13401319"]
[BlackFideId "13302531"]
[WhiteElo "2727"]
[BlackElo "2573"]
[Result "1-0"]
[Round "03"]
[TimeControl "900+10"]
[Date "2021.12.26"]
[WhiteClock "0:01:38"]
[BlackClock "0:00:13"]

1. d4 {[%clk 0:15:00]}  Nf6 {[%clk 0:15:18]} 2. Bg5 {[%clk 0:15:26]}  d5 {[%clk 0:15:18]} 3. Nd2 {[%clk 0:15:26]}  Bf5 {[%clk 0:15:23]} 4. e3 {[%clk 0:15:30]}  e6 {[%clk 0:15:23]} 5. g4 {[%clk 0:12:46]}  Bg6 {[%clk 0:14:01]} 6. Ngf3 {[%clk 0:12:46]}  Nbd7 {[%clk 0:14:01]} 7. Ne5 {[%clk 0:12:46]}  Qc8 {[%clk 0:13:29]} 8. Nxg6 {[%clk 0:12:23]}  hxg6 {[%clk 0:07:46]} 9. Bg2 {[%clk 0:12:23]}  Bd6 {[%clk 0:07:54]} 10. c4 {[%clk 0:07:59]}  c6 {[%clk 0:07:54]} 11. Rc1 {[%clk 0:07:59]}  Qb8 {[%clk 0:06:40]} 12. Bxf6 {[%clk 0:08:10]}  Nxf6 {[%clk 0:05:07]} 13. h3 {[%clk 0:07:01]}  Bb4 {[%clk 0:05:05]} 14. Ke2 {[%clk 0:07:01]}  Bxd2 {[%clk 0:05:05]} 15. Qxd2 {[%clk 0:07:01]}  g5 {[%clk 0:04:21]} 16. b4 {[%clk 0:06:55]}  a6 {[%clk 0:03:19]} 17. a4 {[%clk 0:06:55]}  Qd6 {[%clk 0:03:19]} 18. Qb2 {[%clk 0:06:47]}  g6 {[%clk 0:03:11]} 19. Rc2 {[%clk 0:05:54]}  Kf8 {[%clk 0:02:17]} 20. b5 {[%clk 0:05:15]}  axb5 {[%clk 0:01:58]} 21. axb5 {[%clk 0:05:15]}  Kg7 {[%clk 0:01:58]} 22. c5 {[%clk 0:04:41]}  Qc7 {[%clk 0:01:55]} 23. b6 {[%clk 0:04:41]}  Qb8 {[%clk 0:01:55]} 24. Rcc1 {[%clk 0:04:41]}  Ra6 {[%clk 0:01:48]} 25. Ra1 {[%clk 0:03:55]}  Qa8 {[%clk 0:01:48]} 26. Rhc1 {[%clk 0:03:55]}  Rxa1 {[%clk 0:00:51]} 27. Rxa1 {[%clk 0:03:48]}  Qb8 {[%clk 0:00:51]} 28. Ra7 {[%clk 0:03:48]}  Qh2 {[%clk 0:00:01]} 29. Kf1 {[%clk 0:03:25]}  Rxh3 {[%clk 0:00:01]} 30. Rxb7 {[%clk 0:03:19]}  Nxg4 {[%clk 0:00:00]} 31. Qe2 {[%clk 0:03:19]}  Nf6 {[%clk 0:00:00]} 32. Ra7 {[%clk 0:03:19]}  Rh8 {[%clk 0:00:00]} 33. Qf3 {[%clk 0:01:55]}  Rf8 {[%clk 0:00:00]} 34. Qg3 {[%clk 0:01:55]}  Qh5 {[%clk 0:00:00]} 35. Ke1 {[%clk 0:01:55]}  Qh8 {[%clk 0:00:00]} 36. Qxg5 {[%clk 0:01:38]}  Ra8 {[%clk 0:00:13]} 37. Qe5 {[%clk 0:01:38]}  Rc8 {[%clk 0:00:13]} 38. Ke2 {[%clk 0:01:38]} 1-0


[Site "http://www.Chess.com"]

[Event "FIDE World Rapid Chess Championship 2021"]
[White "Artemiev, Vladislav"]
[Black "Najer, Evgeniy"]
[WhiteFideId "24101605"]
[BlackFideId "4118987"]
[WhiteElo "2714"]
[BlackElo "2565"]
[Result "0-1"]
[Round "03"]
[TimeControl "900+10"]
[Date "2021.12.26"]
[WhiteClock "0:00:00"]
[BlackClock "0:00:33"]

1. c4 {[%clk 0:15:14]}  e5 {[%clk 0:15:18]} 2. Nc3 {[%clk 0:15:14]}  d6 {[%clk 0:14:44]} 3. g3 {[%clk 0:15:06]}  f5 {[%clk 0:14:44]} 4. d4 {[%clk 0:15:06]}  Be7 {[%clk 0:14:44]} 5. Nf3 {[%clk 0:14:09]}  e4 {[%clk 0:14:51]} 6. Nh4 {[%clk 0:13:00]}  c6 {[%clk 0:14:51]} 7. Ng2 {[%clk 0:12:50]}  Na6 {[%clk 0:14:29]} 8. h4 {[%clk 0:12:02]}  Be6 {[%clk 0:12:59]} 9. d5 {[%clk 0:09:42]}  Bf7 {[%clk 0:12:09]} 10. Bf4 {[%clk 0:08:40]}  Nf6 {[%clk 0:12:18]} 11. Ne3 {[%clk 0:06:50]}  g6 {[%clk 0:12:18]} 12. h5 {[%clk 0:06:55]}  Rg8 {[%clk 0:10:08]} 13. hxg6 {[%clk 0:06:55]}  hxg6 {[%clk 0:10:08]} 14. dxc6 {[%clk 0:06:55]}  bxc6 {[%clk 0:10:08]} 15. Qa4 {[%clk 0:06:55]}  Nc5 {[%clk 0:10:21]} 16. Qxc6+ {[%clk 0:03:57]}  Kf8 {[%clk 0:07:58]} 17. Ned5 {[%clk 0:02:55]}  Rc8 {[%clk 0:08:07]} 18. Qb5 {[%clk 0:00:36]}  Rb8 {[%clk 0:08:07]} 19. Bh6+ {[%clk 0:00:30]}  Rg7 {[%clk 0:06:07]} 20. Nxe7 {[%clk 0:00:30]}  Rxb5 {[%clk 0:06:07]} 21. Nc6 {[%clk 0:00:30]}  Qb6 {[%clk 0:05:50]} 22. cxb5 {[%clk 0:00:34]}  a6 {[%clk 0:05:50]} 23. Bg5 {[%clk 0:00:42]}  Nd5 {[%clk 0:04:09]} 24. Bd8 {[%clk 0:00:12]}  Qb7 {[%clk 0:04:09]} 25. Rh8+ {[%clk 0:00:12]}  Rg8 {[%clk 0:04:09]} 26. Rxg8+ {[%clk 0:00:12]}  Bxg8 {[%clk 0:02:56]} 27. Nxd5 {[%clk 0:00:16]}  Bxd5 {[%clk 0:02:56]} 28. Be7+ {[%clk 0:00:16]}  Ke8 {[%clk 0:02:56]} 29. Bxd6 {[%clk 0:00:23]}  Qxb5 {[%clk 0:02:35]} 30. Rc1 {[%clk 0:00:23]}  Nb7 {[%clk 0:02:35]} 31. Na7 {[%clk 0:00:23]}  Qxb2 {[%clk 0:01:53]} 32. Bf4 {[%clk 0:00:14]}  Nd6 {[%clk 0:00:29]} 33. Bh3 {[%clk 0:00:23]}  Bc4 {[%clk 0:00:29]} 34. Kf1 {[%clk 0:00:23]}  Bxe2+ {[%clk 0:00:29]} 35. Kg1 {[%clk 0:00:23]}  Nc4 {[%clk 0:00:29]} 36. Nc6 {[%clk 0:00:23]}  e3 {[%clk 0:00:29]} 37. Re1 {[%clk 0:00:23]}  Qd2 {[%clk 0:00:29]} 38. Rb1 {[%clk 0:00:23]}  Bf3 {[%clk 0:00:37]} 39. Bxe3 {[%clk 0:00:28]}  Nxe3 {[%clk 0:00:37]} 40. Rb8+ {[%clk 0:00:28]}  Kf7 {[%clk 0:00:37]} 41. Ne5+ {[%clk 0:00:28]}  Kf6 {[%clk 0:00:37]} 42. Nxf3 {[%clk 0:00:28]}  Qd1+ {[%clk 0:00:37]} 43. Kh2 {[%clk 0:00:28]}  Qxf3 {[%clk 0:00:37]} 44. Rb6+ {[%clk 0:00:57]}  Kg5 {[%clk 0:00:33]} 45. fxe3 {[%clk 0:00:57]}  Qf2+ {[%clk 0:00:33]} 46. Bg2 {[%clk 0:00:57]}  Qxa2 {[%clk 0:00:33]} 47. Kh3 {[%clk 0:00:57]}  Qe2 {[%clk 0:00:33]} 48. Bd5 {[%clk 0:00:57]}  Qxe3 {[%clk 0:00:33]} 49. Rb3 {[%clk 0:00:47]}  Qc5 {[%clk 0:00:33]} 50. Rd3 {[%clk 0:00:00]}  a5 {[%clk 0:00:33]} 51. Bb3 {[%clk 0:00:00]}  Qb5 {[%clk 0:00:33]} 52. Rf3 {[%clk 0:00:00]}  a4 {[%clk 0:00:33]} 53. Ba2 {[%clk 0:00:00]}  Qb2 {[%clk 0:00:33]} 54. Bf7 {[%clk 0:00:00]}  Qb7 {[%clk 0:00:33]} 0-1


[Site "http://www.Chess.com"]

[Event "FIDE World Rapid Chess Championship 2021"]
[White "Maghsoodloo, Parham"]
[Black "Sargissian, Gabriel"]
[WhiteFideId "12539929"]
[BlackFideId "13300881"]
[WhiteElo "2512"]
[BlackElo "2693"]
[Result "1-0"]
[Round "03"]
[TimeControl "900+10"]
[Date "2021.12.26"]
[WhiteClock "0:03:20"]
[BlackClock "0:01:20"]

1. d4 {[%clk 0:15:00]}  Nf6 {[%clk 0:15:16]} 2. c4 {[%clk 0:15:26]}  e6 {[%clk 0:15:16]} 3. Nc3 {[%clk 0:15:26]}  d5 {[%clk 0:15:16]} 4. cxd5 {[%clk 0:15:24]}  exd5 {[%clk 0:15:32]} 5. Bg5 {[%clk 0:15:24]}  c6 {[%clk 0:15:32]} 6. e3 {[%clk 0:15:24]}  h6 {[%clk 0:15:32]} 7. Bh4 {[%clk 0:15:24]}  Be7 {[%clk 0:15:32]} 8. Bd3 {[%clk 0:15:24]}  O-O {[%clk 0:15:32]} 9. Nge2 {[%clk 0:15:24]}  Re8 {[%clk 0:15:32]} 10. Qc2 {[%clk 0:14:53]}  Nbd7 {[%clk 0:15:45]} 11. Rb1 {[%clk 0:14:36]}  a5 {[%clk 0:15:49]} 12. a3 {[%clk 0:13:41]}  Ne4 {[%clk 0:15:49]} 13. Bxe7 {[%clk 0:13:48]}  Qxe7 {[%clk 0:13:25]} 14. O-O {[%clk 0:13:48]}  Nd6 {[%clk 0:13:30]} 15. Ng3 {[%clk 0:13:22]}  Nf6 {[%clk 0:12:28]} 16. Rfe1 {[%clk 0:13:15]}  Be6 {[%clk 0:12:28]} 17. f3 {[%clk 0:12:49]}  b5 {[%clk 0:10:48]} 18. a4 {[%clk 0:12:54]}  Rac8 {[%clk 0:08:32]} 19. Rbc1 {[%clk 0:12:47]}  b4 {[%clk 0:07:57]} 20. Nce2 {[%clk 0:12:26]}  Nd7 {[%clk 0:07:57]} 21. e4 {[%clk 0:12:35]}  dxe4 {[%clk 0:07:01]} 22. fxe4 {[%clk 0:12:35]}  c5 {[%clk 0:06:56]} 23. e5 {[%clk 0:11:44]}  Nb7 {[%clk 0:06:56]} 24. Nf4 {[%clk 0:11:44]}  Nb6 {[%clk 0:03:37]} 25. Nxe6 {[%clk 0:10:44]}  fxe6 {[%clk 0:03:37]} 26. Bb5 {[%clk 0:10:44]}  Red8 {[%clk 0:03:45]} 27. Qg6 {[%clk 0:10:02]}  Qf7 {[%clk 0:03:42]} 28. Qxf7+ {[%clk 0:09:16]}  Kxf7 {[%clk 0:03:42]} 29. Ba6 {[%clk 0:09:16]}  Rc7 {[%clk 0:03:42]} 30. Ne4 {[%clk 0:09:31]}  c4 {[%clk 0:03:06]} 31. Bxb7 {[%clk 0:09:31]}  Rxb7 {[%clk 0:03:06]} 32. Nd6+ {[%clk 0:09:31]}  Rxd6 {[%clk 0:03:06]} 33. exd6 {[%clk 0:09:31]}  c3 {[%clk 0:03:06]} 34. bxc3 {[%clk 0:07:04]}  b3 {[%clk 0:03:27]} 35. Rf1+ {[%clk 0:07:04]}  Ke8 {[%clk 0:03:27]} 36. Rce1 {[%clk 0:03:17]}  b2 {[%clk 0:02:23]} 37. Rxe6+ {[%clk 0:03:26]}  Kd8 {[%clk 0:02:23]} 38. Re7 {[%clk 0:03:26]}  Rxe7 {[%clk 0:02:23]} 39. dxe7+ {[%clk 0:03:26]}  Kxe7 {[%clk 0:02:23]} 40. Rb1 {[%clk 0:03:26]}  Nxa4 {[%clk 0:01:37]} 41. c4 {[%clk 0:03:04]}  Ke6 {[%clk 0:01:37]} 42. Kf1 {[%clk 0:03:04]}  Kf5 {[%clk 0:01:37]} 43. c5 {[%clk 0:03:20]}  Ke6 {[%clk 0:01:20]} 44. Ke1 {[%clk 0:03:20]}  Kd5 {[%clk 0:01:20]} 45. Kd2 {[%clk 0:03:20]}  Kc4 {[%clk 0:01:20]} 46. Kc2 {[%clk 0:03:20]}  Kd5 {[%clk 0:01:20]} 1-0


[Site "http://www.Chess.com"]

[Event "FIDE World Rapid Chess Championship 2021"]
[White "Korobov, Anton"]
[Black "Kobalia, Mikhail"]
[WhiteFideId "14105730"]
[BlackFideId "4119150"]
[WhiteElo "2689"]
[BlackElo "2543"]
[Result "1-0"]
[Round "03"]
[TimeControl "900+10"]
[Date "2021.12.26"]
[WhiteClock "0:01:28"]
[BlackClock "0:00:30"]

1. d4 {[%clk 0:15:00]}  d5 {[%clk 0:15:28]} 2. c4 {[%clk 0:15:27]}  c6 {[%clk 0:15:28]} 3. cxd5 {[%clk 0:15:27]}  cxd5 {[%clk 0:15:28]} 4. Bf4 {[%clk 0:15:27]}  e6 {[%clk 0:15:28]} 5. Nc3 {[%clk 0:15:32]}  Bd6 {[%clk 0:15:50]} 6. e3 {[%clk 0:15:32]}  Bxf4 {[%clk 0:15:50]} 7. exf4 {[%clk 0:15:32]}  Qb6 {[%clk 0:15:50]} 8. Qd2 {[%clk 0:15:32]}  Nf6 {[%clk 0:15:50]} 9. Bd3 {[%clk 0:15:11]}  Bd7 {[%clk 0:15:01]} 10. Nf3 {[%clk 0:15:11]}  Nc6 {[%clk 0:15:01]} 11. Rc1 {[%clk 0:14:50]}  O-O {[%clk 0:15:09]} 12. Na4 {[%clk 0:14:02]}  Qc7 {[%clk 0:13:29]} 13. Nc5 {[%clk 0:14:02]}  Rfd8 {[%clk 0:13:29]} 14. O-O {[%clk 0:14:02]}  Be8 {[%clk 0:13:29]} 15. b4 {[%clk 0:12:44]}  b6 {[%clk 0:13:17]} 16. Na6 {[%clk 0:11:54]}  Qd6 {[%clk 0:12:05]} 17. a3 {[%clk 0:10:54]}  Rac8 {[%clk 0:12:13]} 18. g3 {[%clk 0:08:44]}  Ne7 {[%clk 0:12:17]} 19. Rxc8 {[%clk 0:08:14]}  Rxc8 {[%clk 0:12:06]} 20. Rc1 {[%clk 0:08:14]}  Qd8 {[%clk 0:12:06]} 21. Rxc8 {[%clk 0:08:14]}  Qxc8 {[%clk 0:11:42]} 22. Qc2 {[%clk 0:07:41]}  Ne4 {[%clk 0:11:42]} 23. Qc7 {[%clk 0:07:49]}  Kf8 {[%clk 0:08:53]} 24. Kf1 {[%clk 0:05:20]}  f6 {[%clk 0:07:14]} 25. Ke1 {[%clk 0:04:26]}  Bg6 {[%clk 0:06:24]} 26. Nh4 {[%clk 0:04:11]}  Bf7 {[%clk 0:03:47]} 27. Qxc8+ {[%clk 0:04:03]}  Nxc8 {[%clk 0:03:47]} 28. f3 {[%clk 0:04:03]}  Ned6 {[%clk 0:03:37]} 29. b5 {[%clk 0:02:45]}  g6 {[%clk 0:02:42]} 30. a4 {[%clk 0:02:52]}  Be8 {[%clk 0:02:42]} 31. Ng2 {[%clk 0:02:52]}  Ke7 {[%clk 0:02:42]} 32. Kd2 {[%clk 0:02:41]}  Nb7 {[%clk 0:01:54]} 33. h4 {[%clk 0:02:41]}  h6 {[%clk 0:01:52]} 34. Ne3 {[%clk 0:02:30]}  Na5 {[%clk 0:01:52]} 35. Kc3 {[%clk 0:02:30]}  Nd6 {[%clk 0:01:52]} 36. Ng4 {[%clk 0:02:30]}  h5 {[%clk 0:01:52]} 37. Ne3 {[%clk 0:02:30]}  Nf5 {[%clk 0:01:52]} 38. Bxf5 {[%clk 0:02:19]}  gxf5 {[%clk 0:01:38]} 39. Nb4 {[%clk 0:02:19]}  Kd6 {[%clk 0:01:38]} 40. g4 {[%clk 0:02:19]}  fxg4 {[%clk 0:01:38]} 41. fxg4 {[%clk 0:02:19]}  hxg4 {[%clk 0:01:51]} 42. Nxg4 {[%clk 0:02:19]}  Ke7 {[%clk 0:01:51]} 43. Ne3 {[%clk 0:02:19]}  Bh5 {[%clk 0:01:51]} 44. f5 {[%clk 0:02:19]}  Bf3 {[%clk 0:01:51]} 45. fxe6 {[%clk 0:02:19]}  Kxe6 {[%clk 0:01:51]} 46. Nd3 {[%clk 0:02:19]}  Be4 {[%clk 0:01:09]} 47. Nf4+ {[%clk 0:02:19]}  Kd6 {[%clk 0:01:09]} 48. h5 {[%clk 0:02:02]}  Nb7 {[%clk 0:01:03]} 49. Ng4 {[%clk 0:02:02]}  Ke7 {[%clk 0:01:03]} 50. Nf2 {[%clk 0:02:02]}  Nd6 {[%clk 0:01:03]} 51. Nxe4 {[%clk 0:02:02]}  dxe4 {[%clk 0:01:03]} 52. d5 {[%clk 0:01:31]}  Kf7 {[%clk 0:00:58]} 53. Kd4 {[%clk 0:01:31]}  Kg7 {[%clk 0:00:58]} 54. Ne2 {[%clk 0:01:28]}  Kh6 {[%clk 0:00:30]} 55. Ng3 {[%clk 0:01:28]}  f5 {[%clk 0:00:30]} 56. Ke5 {[%clk 0:01:28]}  e3 {[%clk 0:00:30]} 57. Kf4 {[%clk 0:01:28]}  e2 {[%clk 0:00:30]} 58. Nxe2 {[%clk 0:01:28]}  Kxh5 {[%clk 0:00:30]} 59. Ke5 {[%clk 0:01:28]}  Nc4+ {[%clk 0:00:30]} 60. Ke6 {[%clk 0:01:28]}  Kg4 {[%clk 0:00:30]} 61. d6 {[%clk 0:01:28]} 1-0


[Site "http://www.Chess.com"]

[Event "FIDE World Rapid Chess Championship 2021"]
[White "Lima, Darcy"]
[Black "Sarana, Alexey"]
[WhiteFideId "2100045"]
[BlackFideId "24133795"]
[WhiteElo "2505"]
[BlackElo "2680"]
[Result "0-1"]
[Round "03"]
[TimeControl "900+10"]
[Date "2021.12.26"]
[WhiteClock "0:01:20"]
[BlackClock "0:03:35"]

1. e4 {[%clk 0:15:16]}  c5 {[%clk 0:15:00]} 2. Nf3 {[%clk 0:15:16]}  d6 {[%clk 0:15:00]} 3. c3 {[%clk 0:15:16]}  Nf6 {[%clk 0:15:00]} 4. Be2 {[%clk 0:15:16]}  g6 {[%clk 0:15:00]} 5. O-O {[%clk 0:15:16]}  Bg7 {[%clk 0:15:00]} 6. d3 {[%clk 0:15:16]}  O-O {[%clk 0:15:00]} 7. Nbd2 {[%clk 0:15:16]}  Nc6 {[%clk 0:15:00]} 8. a3 {[%clk 0:15:01]}  a5 {[%clk 0:14:56]} 9. a4 {[%clk 0:15:01]}  e5 {[%clk 0:14:56]} 10. Re1 {[%clk 0:15:01]}  h6 {[%clk 0:14:56]} 11. Bf1 {[%clk 0:14:22]}  Be6 {[%clk 0:15:18]} 12. Nc4 {[%clk 0:14:22]}  Qc7 {[%clk 0:15:18]} 13. h3 {[%clk 0:14:22]}  d5 {[%clk 0:15:18]} 14. exd5 {[%clk 0:14:22]}  Nxd5 {[%clk 0:15:18]} 15. Bd2 {[%clk 0:14:22]}  Kh7 {[%clk 0:15:18]} 16. Qc2 {[%clk 0:13:35]}  Rfe8 {[%clk 0:15:22]} 17. g3 {[%clk 0:13:35]}  Rad8 {[%clk 0:15:22]} 18. Rad1 {[%clk 0:13:35]}  Nb6 {[%clk 0:15:18]} 19. Na3 {[%clk 0:12:09]}  Qd7 {[%clk 0:15:18]} 20. Kh2 {[%clk 0:12:12]}  Bd5 {[%clk 0:14:27]} 21. Bg2 {[%clk 0:11:39]}  Qe6 {[%clk 0:13:13]} 22. Ra1 {[%clk 0:11:39]}  Bb3 {[%clk 0:13:05]} 23. Qb1 {[%clk 0:09:41]}  Qf5 {[%clk 0:13:05]} 24. Be3 {[%clk 0:09:49]}  Qxd3 {[%clk 0:10:23]} 25. Qxd3 {[%clk 0:09:44]}  Rxd3 {[%clk 0:07:59]} 26. Nd2 {[%clk 0:09:44]}  Be6 {[%clk 0:07:59]} 27. Nb5 {[%clk 0:09:44]}  f5 {[%clk 0:07:41]} 28. Nc7 {[%clk 0:07:48]}  Re7 {[%clk 0:07:41]} 29. Nxe6 {[%clk 0:07:48]}  Rxe6 {[%clk 0:07:41]} 30. Nb3 {[%clk 0:07:48]}  Nd7 {[%clk 0:07:41]} 31. Nxc5 {[%clk 0:08:04]}  Nxc5 {[%clk 0:07:19]} 32. Bxc5 {[%clk 0:08:04]}  e4 {[%clk 0:07:19]} 33. Rad1 {[%clk 0:08:04]}  Ne5 {[%clk 0:07:19]} 34. Kg1 {[%clk 0:08:00]}  h5 {[%clk 0:07:34]} 35. Kf1 {[%clk 0:06:47]}  Bf6 {[%clk 0:06:34]} 36. Bd4 {[%clk 0:05:32]}  Rxd1 {[%clk 0:06:34]} 37. Rxd1 {[%clk 0:05:32]}  Nd3 {[%clk 0:06:34]} 38. Be3 {[%clk 0:05:32]}  Nxb2 {[%clk 0:05:08]} 39. Rb1 {[%clk 0:04:53]}  Bxc3 {[%clk 0:05:08]} 40. Bd2 {[%clk 0:04:52]}  Bg7 {[%clk 0:04:57]} 41. Bxa5 {[%clk 0:03:04]}  Ra6 {[%clk 0:04:04]} 42. Bd2 {[%clk 0:03:04]}  Rxa4 {[%clk 0:04:04]} 43. f3 {[%clk 0:03:04]}  b5 {[%clk 0:04:04]} 44. fxe4 {[%clk 0:03:04]}  fxe4 {[%clk 0:04:04]} 45. Re1 {[%clk 0:03:04]}  Nc4 {[%clk 0:04:04]} 46. Bf4 {[%clk 0:03:04]}  Bh6 {[%clk 0:04:10]} 47. Rxe4 {[%clk 0:02:54]}  Bxf4 {[%clk 0:03:26]} 48. Re7+ {[%clk 0:02:54]}  Kh6 {[%clk 0:03:26]} 49. gxf4 {[%clk 0:02:54]}  Nd6 {[%clk 0:03:26]} 50. Re6 {[%clk 0:02:54]}  Rxf4+ {[%clk 0:03:26]} 51. Ke2 {[%clk 0:02:54]}  Nf5 {[%clk 0:03:26]} 52. Rb6 {[%clk 0:02:54]}  b4 {[%clk 0:03:26]} 53. Bd5 {[%clk 0:02:54]}  Kg7 {[%clk 0:03:26]} 54. Ke1 {[%clk 0:02:57]}  g5 {[%clk 0:03:37]} 55. Re6 {[%clk 0:02:01]}  g4 {[%clk 0:03:36]} 56. hxg4 {[%clk 0:02:01]}  hxg4 {[%clk 0:03:36]} 57. Be4 {[%clk 0:01:20]}  Nd4 {[%clk 0:03:35]} 0-1


[Site "http://www.Chess.com"]

[Event "FIDE World Rapid Chess Championship 2021"]
[White "Heberla, Bartlomiej"]
[Black "Svane, Rasmus"]
[WhiteFideId "1115120"]
[BlackFideId "4657101"]
[WhiteElo "2437"]
[BlackElo "2677"]
[Result "0-1"]
[Round "03"]
[TimeControl "900+10"]
[Date "2021.12.26"]
[WhiteClock "0:00:00"]
[BlackClock "0:00:53"]

1. d4 {[%clk 0:15:00]}  Nf6 {[%clk 0:15:00]} 2. Nf3 {[%clk 0:15:28]}  d5 {[%clk 0:15:24]} 3. c4 {[%clk 0:15:28]}  e6 {[%clk 0:15:24]} 4. Nc3 {[%clk 0:15:28]}  Be7 {[%clk 0:15:21]} 5. Bg5 {[%clk 0:15:58]}  h6 {[%clk 0:15:21]} 6. Bh4 {[%clk 0:15:58]}  dxc4 {[%clk 0:15:21]} 7. e3 {[%clk 0:15:58]}  c5 {[%clk 0:15:21]} 8. dxc5 {[%clk 0:15:54]}  Qxd1+ {[%clk 0:15:28]} 9. Rxd1 {[%clk 0:15:54]}  Nbd7 {[%clk 0:15:28]} 10. Bxc4 {[%clk 0:14:20]}  Nxc5 {[%clk 0:15:44]} 11. Ne5 {[%clk 0:14:20]}  a6 {[%clk 0:15:44]} 12. Be2 {[%clk 0:14:20]}  Nfd7 {[%clk 0:15:58]} 13. Bxe7 {[%clk 0:10:33]}  Kxe7 {[%clk 0:08:46]} 14. Nc4 {[%clk 0:10:33]}  b6 {[%clk 0:08:54]} 15. Bf3 {[%clk 0:09:31]}  Ra7 {[%clk 0:05:44]} 16. b4 {[%clk 0:09:31]}  Nb7 {[%clk 0:05:44]} 17. a4 {[%clk 0:08:13]}  a5 {[%clk 0:05:17]} 18. Nb5 {[%clk 0:08:13]}  Ra6 {[%clk 0:05:17]} 19. Nc7 {[%clk 0:07:25]}  Ra7 {[%clk 0:05:04]} 20. Nb5 {[%clk 0:07:25]}  Ra6 {[%clk 0:05:04]} 21. Rxd7+ {[%clk 0:01:29]}  Kxd7 {[%clk 0:05:22]} 22. Ne5+ {[%clk 0:00:36]}  Ke7 {[%clk 0:05:22]} 23. Nc6+ {[%clk 0:00:36]}  Kf6 {[%clk 0:05:22]} 24. Nc7 {[%clk 0:00:36]}  Nd8 {[%clk 0:04:08]} 25. b5 {[%clk 0:00:56]}  Nxc6 {[%clk 0:02:52]} 26. bxa6 {[%clk 0:01:25]}  Bd7 {[%clk 0:02:52]} 27. Ke2 {[%clk 0:01:25]}  Na7 {[%clk 0:01:52]} 28. Rb1 {[%clk 0:01:13]}  Rb8 {[%clk 0:01:52]} 29. Na8 {[%clk 0:01:25]}  Bxa4 {[%clk 0:01:07]} 30. Nxb6 {[%clk 0:01:25]}  Kg6 {[%clk 0:01:07]} 31. Bb7 {[%clk 0:01:25]}  Bb5+ {[%clk 0:00:30]} 32. Ke1 {[%clk 0:01:06]}  f5 {[%clk 0:00:25]} 33. Rc1 {[%clk 0:00:32]}  Bxa6 {[%clk 0:00:30]} 34. Bxa6 {[%clk 0:00:32]}  Rxb6 {[%clk 0:00:30]} 35. Bc4 {[%clk 0:00:32]}  Kf6 {[%clk 0:00:30]} 36. Ra1 {[%clk 0:00:32]}  Nc6 {[%clk 0:00:30]} 37. Be2 {[%clk 0:00:32]}  Rb2 {[%clk 0:00:30]} 38. Kd1 {[%clk 0:00:32]}  g5 {[%clk 0:00:41]} 39. Bf3 {[%clk 0:00:28]}  Nb4 {[%clk 0:00:41]} 40. Be2 {[%clk 0:00:28]}  Na2 {[%clk 0:00:41]} 41. Ke1 {[%clk 0:00:28]}  a4 {[%clk 0:00:41]} 42. Bc4 {[%clk 0:00:15]}  Nc3 {[%clk 0:00:40]} 43. Ra3 {[%clk 0:00:15]}  Rb1+ {[%clk 0:00:40]} 44. Kd2 {[%clk 0:00:15]}  Ne4+ {[%clk 0:00:40]} 45. Kc2 {[%clk 0:00:15]}  Rb4 {[%clk 0:00:40]} 46. Be2 {[%clk 0:00:15]}  Nxf2 {[%clk 0:00:40]} 47. Kc3 {[%clk 0:00:05]}  Re4 {[%clk 0:00:33]} 48. Kd2 {[%clk 0:00:05]}  Ng4 {[%clk 0:00:33]} 49. h3 {[%clk 0:00:05]}  Ne5 {[%clk 0:00:33]} 50. Bb5 {[%clk 0:00:00]}  Nc4+ {[%clk 0:00:53]} 51. Bxc4 {[%clk 0:00:00]}  Rxc4 {[%clk 0:00:53]} 52. Kd3 {[%clk 0:00:00]}  Rb4 {[%clk 0:00:53]} 53. Ke2 {[%clk 0:00:00]}  h5 {[%clk 0:00:53]} 54. Kf3 {[%clk 0:00:00]}  g4+ {[%clk 0:00:53]} 55. hxg4 {[%clk 0:00:00]}  hxg4+ {[%clk 0:00:53]} 56. Kf2 {[%clk 0:00:00]}  Rb2+ {[%clk 0:00:53]} 57. Kg3 {[%clk 0:00:00]}  Rb4 {[%clk 0:00:53]} 58. Ra2 {[%clk 0:00:00]}  Ke5 {[%clk 0:00:53]} 59. Kf2 {[%clk 0:00:00]}  Kd5 {[%clk 0:00:53]} 0-1


[Site "http://www.Chess.com"]